Cogmind - Beta 13 *** ADVENTURER MODE // 2024.05.16 @ 15:44:06 Player: OrcaCora Result: Destroyed by 8R-AWN with 8R-AWN's Boregun Performance ------------- Evolutions (0) 0 Regions Visited (3) 600 Robots Destroyed (36) 180 Value Destroyed (745) 745 Prototype IDs (5) 100 Alien Tech Used (0) 0 Bonus (0) 0 TOTAL SCORE: 1625 Bonus ------- None Cogmind --------- Core Integrity 0/250 Matter 114/300 Energy 250/250 System Corruption 4% Temperature Cool (34) Movement Core (1450) Ox28 Location -10/Exiles Parts ------- > --- POWER (1) -------- Ion Engine > --- PROPULSION (2) --- (None) > --- UTILITY (2) ------ Huge Storage Unit > --- WEAPON (2) ------- (None) > --- INVENTORY (25) --- Light Ion Engine Light Ion Engine Light Ion Engine Wheel Wheel Wheel Wheel Compact Wheel Medium Matter Pod (100) Improved Sensor Array Signal Interpreter Improved Signal Interpreter Targeting Computer Tractor Beam Medium Laser Light Assault Rifle Light Assault Rifle Grenade Launcher Peak State ------------ > --- POWER ------------ Ion Engine > --- PROPULSION ------- Wheel Wheel > --- UTILITY ---------- Huge Storage Unit Sensor Array > --- WEAPON ----------- Particle Gun YI-UF0's Doublenader > --- INVENTORY -------- Light Ion Engine Light Ion Engine Light Ion Engine Wheel Wheel Wheel Wheel Wheel Compact Wheel Large Battery Medium Matter Pod Medium Matter Pod Signal Interpreter Targeting Computer Tractor Beam Medium Laser Light Assault Rifle Light Assault Rifle Light Assault Rifle Light Assault Rifle Light Assault Rifle Grenade Launcher [Rating: 13] Favorites ----------- Power Ion Engine Engine Ion Engine Power Core Light Nuclear Core Propulsion Compact Wheel Wheel Compact Wheel Utility Huge Storage Unit Device Tractor Beam Storage Huge Storage Unit Weapon Medium Laser Energy Gun Medium Laser Ballistic Gun Light Assault Rifle Launcher Grenade Launcher Build | -11 -10 -10 -10 ------- Run | Yrd Mat Min Exi Slots Evolved . | . . . . Power . | . . . . Propulsion . | . . . . Utility . | . . . . Weapon . | . . . . Parts Attached 20 | 4 9 7 . Power 3 | . 2 1 . Engine 2 | . 1 1 . Core 1 | . 1 . . Reactor . | . . . . Propulsion 5 | 2 1 2 . Treads . | . . . . Leg . | . . . . Wheel 5 | 2 1 2 . Hover . | . . . . Flight . | . . . . Utility 5 | 1 2 2 . Device 3 | 1 . 2 . Storage 2 | . 2 . . Processor . | . . . . Hackware . | . . . . Protection . | . . . . Artifact . | . . . . Weapon 7 | 1 4 2 . Energy Gun 3 | . 2 1 . Energy Cannon . | . . . . Ballistic Gun 1 | 1 . . . Ballistic Cannon . | . . . . Launcher 3 | . 2 1 . Special Weapon . | . . . . Impact Weapon . | . . . . Slashing Weapon . | . . . . Piercing Weapon . | . . . . Special Melee Weapon . | . . . . Unidentified Prototypes 1 | . . 1 . Parts Lost 9 | . 2 2 5 Power . | . . . . Propulsion 4 | . 1 1 2 Utility 2 | . . 1 1 Weapon 3 | . 1 . 2 Highest Loss Streak 5 | . 1 1 5 To Critical Strikes 1 | . . . 1 Average Slot Usage (%) 96 | . 95 97 91 Engine 10 | . 7 14 14 Core 2 | . 5 . . Wheel 27 | . 28 27 23 Device 12 | . 14 11 11 Storage 13 | . 12 14 14 Energy Gun 12 | . 10 14 14 Ballistic Gun 2 | . 5 . . Launcher 12 | . 10 14 12 Naked Turns . | . . . . Heaviest Build 95 | 2 91 95 95 Greatest Support 32 | 32 32 32 20 Greatest Overweight (x) 29 | . 2 5 29 Average Overweight (x) 2 | . 1 3 4 Largest Inventory Capacity 25 | 5 25 25 25 Average Capacity 23 | 5 22 25 25 Most Carried 25 | 5 17 25 20 Average Carried 15 | 2 9 20 19 Final Capacity 25 | 5 25 25 25 Final Carried 20 | 4 17 20 18 Class Distribution -------------------- 91% | Mutant 8% | Scavenger-Mutant Dominant Class ---------------- Mutant | -10/Materials Mutant | -10/Mines Scavenger-Mutant | -10/Exiles Resources | -11 -10 -10 -10 ----------- Run | Yrd Mat Min Exi Matter Collected 1336 | 246 441 549 100 Remotely 530 | 69 441 20 . Salvage Created 1094 | 86 523 473 12 Parts 50 | 3 27 20 . Haulers Intercepted 1 | . 1 . . Recyclers Shooed 2 | 1 1 . . Parts Field Recycled . | . . . . Retrieved Matter . | . . . . Parts Self-Destructed . | . . . . Prevented . | . . . . Kills | -11 -10 -10 -10 ------- Run | Yrd Mat Min Exi Combat Hostiles Destroyed 29 | . 8 16 5 Guns 12 | . 5 7 . AOE 17 | . 3 9 5 Classes Destroyed 7 | 1 5 1 . Worker 10 | . 5 5 . Tunneler 3 | . 2 1 . Hauler 1 | . 1 . . Recycler 5 | 1 2 2 . Watcher 3 | . 3 . . Grunt 14 | . 8 6 . Assembled 15 | . . 10 5 Best Kill Streak 6 | 1 4 6 5 Combat Bots Only 5 | . 2 5 5 Max Kills in Single Turn 2 | 1 2 2 2 Gunslinging . | . . . . Exploded 2 | . 1 2 2 Melee . | . . . . Uniques/NPCs Destroyed . | . . . . Combat | -11 -10 -10 -10 -------- Run | Yrd Mat Min Exi Hostile Shots Fired 100 | . 31 27 42 Missed 32 | . 12 7 13 Damage Taken 898 | . 261 229 408 Core 256 | . 111 24 121 Absorbed by Shields . | . . . . Ignored by Resistances 262 | . 80 67 115 Core Remaining (%) 100 | 100 . . . Volleys Fired 122 | 6 61 43 12 Largest 2 | 1 2 2 2 Hottest 135 | 20 80 120 135 Shots Fired 196 | 6 103 66 21 Gun 125 | 6 68 42 9 Cannon . | . . . . Launcher 71 | . 35 24 12 Special . | . . . . Kinetic 40 | 6 34 . . Thermal 85 | . 34 42 9 Explosive 71 | . 35 24 12 Electromagnetic . | . . . . Robot Hit Streak 22 | 4 11 22 2 Robot Miss Streak 3 | 1 2 2 3 Penetration Max . | . . . . Secondary Targets . | . . . . Shots Hit Robots 98 | 5 56 35 2 Core Hits 107 | 2 39 47 19 Critical Kills 2 | . 2 . . Critical Parts Destroyed . | . . . . Critical Strikes 15 | . 9 6 . Burn 13 | . 7 6 . Destroy 2 | . 2 . . Melee Attacks . | . . . . Impact . | . . . . Slashing . | . . . . Piercing . | . . . . Sneak Attacks . | . . . . Combat Hostiles . | . . . . Follow-up Attacks . | . . . . Damage Inflicted 2974 | 37 1393 1253 291 Guns 766 | 37 421 308 . Cannons . | . . . . Explosions 2208 | . 972 945 291 Melee . | . . . . Ramming . | . . . . Kinetic 232 | 37 195 . . Thermal 534 | . 226 308 . Explosive 2208 | . 972 945 291 Electromagnetic . | . . . . Impact . | . . . . Slashing . | . . . . Piercing . | . . . . Highest Corruption 4 | . . 4 4 Average Corruption 4 | . . 4 4 Corruption Purged . | . . . . Corruption Blocked . | . . . . Effects 22 | . . 17 5 Message Errors 5 | . . 3 2 Matter Fused 6 | . . 6 . Heat Flow Errors 2 | . . 1 1 Energy Discharges 2 | . . 1 1 Data Loss (minor) 4 | . . 4 . Alerts 1 | . . 1 . Weapon Failures 2 | . . 1 1 Overload Shots . | . . . . Overflow Damage 33 | . 9 24 . Projectiles . | . . . . Explosions 33 | . 9 24 . Melee . | . . . . Knockbacks . | . . . . Impact . | . . . . Kinetic . | . . . . Secondary . | . . . . Self-Inflicted Damage 149 | . 82 22 45 Shots 10 | . 5 3 2 Rammed . | . . . . Targets Rammed . | . . . . Kicked . | . . . . Crushed . | . . . . Highest Temperature 382 | . 100 116 382 Average Temperature 58 | . 27 43 148 Received Heat Transfer 252 | . 153 99 . Effects 1 | . . . 1 Interference 1 | . . . 1 Siege Activations . | . . . . Robots Corrupted . | . . . . Combat Hostiles . | . . . . Parts Fried . | . . . . Impact Corruptions . | . . . . Robots Melted 1 | . 1 . . Combat Hostiles . | . . . . Parts Melted 4 | . 2 2 . Heat Transferred 2553 | . 1184 1369 . Parts Sabotaged . | . . . . Parts Stolen . | . . . . Parts Stripped . | . . . . Power Chain Reactions . | . . . . Alert | -11 -10 -10 -10 ------- Run | Yrd Mat Min Exi Peak Influence 282 | 5 282 243 . Initial 26 | . 2 26 . Average 71 | 2 87 60 . Maximum Alert Level 1 | . 1 1 . Low Security (%) 92 | 100 88 95 . Level 1 7 | . 11 4 . Level 2 . | . . . . Level 3 . | . . . . Level 4 . | . . . . Level 5 . | . . . . High Security . | . . . . Max Security . | . . . . Squads Dispatched 2 | . 1 1 . Investigation 2 | . 1 1 . Extermination . | . . . . Reinforcement . | . . . . Assault . | . . . . Garrison . | . . . . Intercept . | . . . . Searches Triggered . | . . . . Construction Impeded . | . . . . Haulers Reinforced . | . . . . Active Scanning Responses . | . . . . Cargo Convoy Interrupts . | . . . . Stealth | -11 -10 -10 -10 --------- Run | Yrd Mat Min Exi Distress Signals 2 | . 2 . . Communications Jammed . | . . . . Distress Signals . | . . . . Times Spotted 41 | . 12 22 7 Peak Tracking Total 9 | . 3 3 9 Tactical Retreats 6 | . . 6 . Traps | -11 -10 -10 -10 ------- Run | Yrd Mat Min Exi Traps Triggered . | . . . . Indirectly . | . . . . Trap Hack Attempts . | . . . . Triggered . | . . . . Disarmed . | . . . . Reprogrammed . | . . . . Reused . | . . . . Traps Extracted . | . . . . Installed . | . . . . Triggered . | . . . . Machines | -11 -10 -10 -10 ---------- Run | Yrd Mat Min Exi Machines Disabled 11 | . 7 1 3 Max in Single Turn 3 | . 3 1 2 Machines Repaired . | . . . . Machines Dismantled . | . . . . Machines Sabotaged . | . . . . Overloaded Fab Kills . | . . . . Hacking | -11 -10 -10 -10 --------- Run | Yrd Mat Min Exi Machines Accessed 7 | . 6 1 . Terminals 6 | . 6 . . Fabricators . | . . . . Repair Stations . | . . . . Recycling Units . | . . . . Scanalyzers . | . . . . Garrison Access . | . . . . Total Hacks 19 | . 18 1 . Successful 11 | . 10 1 . Failed 8 | . 8 . . Catastrophic 2 | . 2 . . Database Lockouts . | . . . . Manual . | . . . . Terminals 18 | . 18 . . Fabricators . | . . . . Repair Stations . | . . . . Recycling Units . | . . . . Scanalyzers . | . . . . Garrison Access . | . . . . Terminal Hacks 11 | . 10 1 . Prototype ID Bank 2 | . 2 . . Open Door 1 | . . 1 . Emergency Access Points 2 | . 2 . . Locate Traps 1 | . 1 . . Dispatch Records 2 | . 2 . . Hauler Manifests 1 | . 1 . . Zone Layout 2 | . 2 . . Fabricator Hacks . | . . . . Repair Station Hacks . | . . . . Recycling Unit Hacks . | . . . . Scanalyzer . | . . . . Garrison Access Hacks . | . . . . Unauthorized Hacks . | . . . . Terminals . | . . . . Fabricators . | . . . . Repair Stations . | . . . . Recycling Units . | . . . . Scanalyzers . | . . . . Garrison Access . | . . . . Data Cores Recovered . | . . . . Used . | . . . . Hacking Detections 5 | . 5 . . Full Trace Events 1 | . 1 . . Feedback Events . | . . . . Feedback Blocked . | . . . . Robot Schematics Acquired . | . . . . Robots Built . | . . . . Authchips . | . . . . Time . | . . . . Total Robot Build Rating . | . . . . Part Schematics Acquired . | . . . . Parts Built . | . . . . Authchips . | . . . . Time . | . . . . Total Part Build Rating . | . . . . Parts Repaired . | . . . . Time . | . . . . Parts Recycled . | . . . . Recycled Matter . | . . . . Retrieved Matter . | . . . . Retrieved Components . | . . . . Parts Scanalyzed . | . . . . Part Schematics Acquired . | . . . . Parts Damaged . | . . . . Bothacking | -11 -10 -10 -10 ------------ Run | Yrd Mat Min Exi Used RIF Installer . | . . . . Robots Hacked . | . . . . Non-combat . | . . . . Combat . | . . . . Robot Hacks Applied . | . . . . Relay Couplers Released . | . . . . Fabnet Peak Effective % . | . . . . Robots Rewired . | . . . . Allies Hacked . | . . . . Hacks Repelled . | . . . . Allies | -11 -10 -10 -10 -------- Run | Yrd Mat Min Exi Total Allies . | . . . . Largest Group . | . . . . Highest-Rated Group . | . . . . Highest-Rated Ally . | . . . . Total Orders . | . . . . Ally Attacks . | . . . . Total Damage . | . . . . Kills . | . . . . Allies Corrupted . | . . . . Allies Melted . | . . . . Intel | -11 -10 -10 -10 ------- Run | Yrd Mat Min Exi Robot Analysis Total . | . . . . Derelict Logs Recovered . | . . . . Drone Launches . | . . . . Drone Recoveries . | . . . . Exploration | -11 -10 -10 -10 ------------- Run | Yrd Mat Min Exi Turns Passed 3358 | 66 1463 1720 109 Spaces Moved 2021 | 54 1021 900 46 Core 28 | 27 . . 1 Treads . | . . . . Legs . | . . . . Wheels 1993 | 27 1021 900 45 Hover . | . . . . Flight . | . . . . Fastest Speed 50 | 50 100 130 140 Average Speed 129 | 75 124 136 171 Slowest Speed 1500 | 100 130 175 1500 Overloaded Moves . | . . . . Propulsion Burnouts . | . . . . Robots Hopped . | . . . . Cave-ins Triggered . | . . . . Exploration Rate (%) 50 | 4 95 95 7 Regions Visited 3 Branch Regions 2 Pre-discovered Areas . | . . . . Known Exits Taken . | . . . . Unknown Exits Taken 3 | 1 1 1 . Scrap Searched 1 | . . 1 . Spaces Dug 42 | . 36 6 . Terrain Destroyed 522 | . 242 210 70 Melee . | . . . . Projectile . | . . . . AOE 522 | . 242 210 70 Terrain Rammed . | . . . . Walls Destroyed . | . . . . Machines Disabled . | . . . . Actions | -11 -10 -10 -10 --------- Run | Yrd Mat Min Exi Total 2579 | 75 1116 1328 60 Wait 356 | . 2 354 . Move 2018 | 53 1020 899 46 Hop . | . . . . Pick Up 46 | 10 21 15 . Fast Attach . | . . . . Attach 13 | 4 7 2 . Detach . | . . . . Swap 7 | . 2 5 . Drop 17 | 2 3 10 2 Fire 122 | 6 61 43 12 Melee . | . . . . Ram . | . . . . Kick . | . . . . Crush . | . . . . Escape Stasis . | . . . . Rewire . | . . . . Trap . | . . . . Miscellaneous . | . . . . Route ------- -11/Scrapyard -10/Materials (discovered 6 exits: [*Mat x3] / *Min x2 / [*Sub]) -10/Mines (discovered 4 exits: [*Mat x2] / [*Exi] / [*Sub]) -10/Exiles History --------- Turn | Location | Event 9 | -11/Scrapyard | Discovered new exit (range 15) 67 | -11/Scrapyard | Entered Materials 133 | -10/Materials | Discovered new exit (range 6) 301 | -10/Materials | Build established: Mutant 354 | -10/Materials | Discovered new exit (range 16) 802 | -10/Materials | Discovered new exit (range 9) 926 | -10/Materials | Discovered new exit (range 8) 1168 | -10/Materials | Discovered new exit (range 6) 1407 | -10/Materials | Discovered new exit (range 9) 1530 | -10/Materials | Entered Mines 1585 | -10/Mines | Deemed a non-threat by the Exiles lab entrance 1585 | -10/Mines | Discovered new exit (range 5) 1619 | -10/Mines | Discovered new exit (range 15) 1964 | -10/Mines | Discovered new exit (range 4) 2017 | -10/Mines | Assembled infested the area 2552 | -10/Mines | Discovered new exit (range 12) 2602 | -10/Mines | Core integrity fell below 50% 2696 | -10/Mines | Found Prototype Launcher 2697 | -10/Mines | Identified YI-UF0's Doublenader 3037 | -10/Mines | Met a Derelict shopkeep closing up shop 3250 | -10/Mines | Entered Exiles 3310 | -10/Exiles | Attacked by the Exiles 3349 | -10/Exiles | Core integrity fell below 20% 3359 | -10/Exiles | Destroyed by 8R-AWN with 8R-AWN's Boregun Last Messages --------------- Overheating: System interference. Particle Gun temporarily disabled. Dropped Med. Matter Pod. Extracted 100 matter. Penetrated by HV Slug. Critical hit (Destroy). Particle Gun destroyed. HV Slug penetrates Wall. Penetrated by HV Slug. HV Slug penetrates Wall. 9RBWB0OO7<36PJTFV4KGVSXXV0 HV Slug penetrates Earth. Penetrated by HV Slug. HV Slug penetrates Wall. Penetrated by HV Slug. HV Slug penetrates Wall. The unstable cave ceiling collapses. Penetrated by HV Slug. HV Slug penetrates Wall. Penetrated by HV Slug. Map ----- +----------------------------------------------------+ | ?????????????????????????????????????????? | | ?????????????????????????????????????????? | | ???????????????????? ???????????????????? | | ???????????????????? ?????????????????? | | ???????????????????# #?????????????????? | | ?????????????????## ##????????????????? | | ?????????????????# ?????????????????? | | ?????????????????# ?????????????????? | | ????????????????## ??????????????????? | | ???????????????## #??????????????????? | | ???????????????# ???????????????????? | | ?????????????### #???????????????????? | | ???????####### ????????????????????? | | ??? """ #????????????????????? | | ?? ##???????????????????? | | ?? * #???????????????????? | | ?? ###????????????????? | | ????????# ????????????????? | | ????????## g ##??????????????? | | ?????????# ##?????????????? | | ?????????# % ##????????????? | | ?????????# # # # ##???????????? | | ?????????#### ?# # ????????????? | | ????????????##??# ##????????????? | | ?????????????????# ! ###??????????? | | ?????????????????##### @ ##?????????? | | ?????????????????????## ###???????? | | ??????????????????????### #???????? | | ????????????????????????### ##???????? | | ??????????????????????????## ;#????????? | | ???????????????????????????#;### #???????? | | ?????????????????????????????#???#???????? | | ?????????????????????????????????????????? | | ?????????????????????????????????????????? | | ?????????????????????????????????????????? | | ?????????????????????????????????????????? | | ?????????????????????????????????????????? | | ?????????????????????????????????????????? | | ?????????????????????????????????????????? | | ?????????????????????????????????????????? | | ?????????????????????????????????????????? | | ?????????????????????????????????????????? | | ?????????????????????????????????????????? | | ?????????????????????????????????????????? | | ?????????????????????????????????????????? | | ?????????????????????????????????????????? | | ?????????????????????????????????????????? | | ?????????????????????????????????????????? | | ?????????????????????????????????????????? | | ?????????????????????????????????????????? | +----------------------------------------------------+ Best States ------------- Heat Dissipation 25 Energy Generation 14 Energy Capacity 250 Matter Stores 300 Matter Capacity 300 Sight Range 16 Robot Scan Range 14 Terrain Scan Density 10 Resistance: KI 20 Resistance: TH 20 Resistance: EX 20 Resistance: EM 20 Resistance: I 20 Resistance: S 20 Resistance: P 20 Evasion (%) 50 Offensive Hacking 10 Item Schematics ----------------- None Robot Schematics ------------------ None Fabricated ------------ Nothing Alien Tech Used ----------------- None Achievements -------------- None Challenges ------------ None Game ------ Seed TachyonChargeExtractor Manual? 0 Play Time 00:29:12 Cumulative 10.2 hours Start 2024.05.16 @ 15:16:47 End 2024.05.16 @ 15:44:06 Sessions 1 Manual Loads 0 Difficulty Adventurer Special Mode None Game No. 6 Rogue 0 Adventurer 6 Explorer 0 Win Type - Total 0 Types 0/0/0/0/0/0/0/0/0 Lore% 5 Gallery% 11 Achievement% 14 Wizard Run 0 Options --------- Layout 1 ASCII 0 Keyboard 0 Movement Mouse Keybinds 0 Fullscreen 1 Font 24/Smallcaps Map View 50x35 Zoom Use 0% Tactical HUD 0 Map Filters NONE Filters NONE Steam 1 RUN: d7c05556-c961-48a0-911c-2da0eb393af4